fUST/lending_fUST_20250826
["ID","MTS","AMOUNT","RATE_DAILY","PERIOD"]
[381371899,1756158646440,-480.0,0.00041095,30]
[381371900,1756158646451,-480.0,0.00041095,30]
[381371901,1756158646460,-2981.64,0.00041095,30]
[381371902,1756158646470,-650.8,0.00041095,30]
[381371903,1756158646480,-480.0,0.00041095,30]
[381371904,1756158646490,-609.42,0.00041095,30]
[381371905,1756158646499,-5782.54,0.00041095,30]
[381371906,1756158646509,-480.0,0.00041095,30]
[381371907,1756158646518,-511.93,0.00041095,30]
[381371908,1756158646528,-1337.57,0.00041095,30]
[381371909,1756158646537,-480.0,0.00041095,30]
[381371910,1756158646547,-480.0,0.00041095,30]
[381371911,1756158646556,-585.04,0.00041095,30]
[381371912,1756158646565,-480.0,0.00041095,30]
[381371913,1756158646575,-480.0,0.00041095,30]
[381371914,1756158646584,-480.0,0.00041095,30]
[381371915,1756158646594,-480.0,0.00041095,30]
[381371916,1756158646603,-7715.15,0.00041095,30]
[381371917,1756158646613,-1161.68,0.00041095,30]
[381371918,1756158646623,-2676.18,0.00041095,30]
[381371919,1756158646632,-480.0,0.00041095,30]
[381371920,1756158646641,-306.38841034,0.00041095,30]
[381371921,1756158646651,-4954.39,0.00041095,30]
[381371922,1756158646660,-506.88,0.00041095,30]
[381371923,1756158646670,-480.0,0.00041095,30]
[381371924,1756158646681,-1185.19,0.00041095,30]
[381371925,1756158646690,-480.0,0.00041095,30]
[381371926,1756158646700,-480.0,0.00041095,30]
[381371927,1756158646709,-480.0,0.00041095,30]
[381371928,1756158646719,-1204.77,0.00041095,30]
[381371929,1756158646730,-1139.81,0.00041095,30]
[381371930,1756158646739,-316.5371905,0.00041095,30]
[381371931,1756158646749,-480.0,0.00041095,30]
[381371932,1756158646759,-7163.33,0.00041095,30]
[381371933,1756158646768,-8110.61,0.00041095,3]
[381371934,1756158646778,-480.0,0.00041095,30]
[381371935,1756158646788,-480.0,0.00041095,30]
[381371936,1756158646797,-480.0,0.00041095,30]
[381371937,1756158646807,-480.0,0.00041095,30]
[381371938,1756158646816,-1611.55,0.00041095,30]
[381371939,1756158646825,-660.08,0.00041095,30]
[381371940,1756158646835,-4076.08,0.00041095,30]
[381371941,1756158646845,-480.0,0.00041095,30]
[381371942,1756158646855,-1138.59,0.00041095,30]
[381371943,1756158646864,-490.27,0.00041095,30]
[381371944,1756158646875,-480.0,0.00041095,30]
[381371945,1756158646885,-624.93,0.00041095,30]
[381371946,1756158646895,-308.14237227,0.00041095,30]
[381371947,1756158646904,-1075.15,0.00041095,30]
[381371948,1756158646914,-684.45,0.00041095,30]
[381371949,1756158646923,-480.0,0.00041095,2]
[381371950,1756158646933,-737.95,0.00041095,30]
[381371951,1756158646942,-151.0,0.00041096,7]
[381371952,1756158646952,-198.81399783,0.00041096,7]
[381371953,1756158646962,-198.0,0.00041096,7]
[381371954,1756158646972,-686.0,0.00041096,7]
[381371955,1756158646981,-151.0,0.00041096,7]
[381371956,1756158646991,-500.0,0.00041096,7]
[381371957,1756158647001,-151.0,0.000411,14]
[381371958,1756158647011,-232.4766599,0.000411,7]
[381371959,1756158647021,-160.0,0.000411,7]
[381371960,1756158647030,-160.0,0.000411,7]
[381371961,1756158647040,-2200.0,0.00041161,14]
[381371962,1756158647050,-4837.25344603,0.00041269,2]
[381371964,1756158647085,-1172.12960008,0.00041269,2]
[381371984,1756158647302,-199.0,0.00040784,120]
[381371986,1756158647312,-990.84976671,0.00040995,2]
[381371988,1756158647321,-1438.69794491,0.00041269,2]
[381371998,1756158647882,-1161.88172518,0.00041269,2]
[381371999,1756158647892,-155.91627867,0.00041269,120]
[381372000,1756158647901,-500.0,0.00041292,30]
[381372001,1756158647910,-399.94060153,0.00041324,28]
[381372002,1756158647920,-207.0,0.0004136,30]
[381372003,1756158647930,-480.0,0.00041369,30]
[381372004,1756158647939,-480.0,0.00041369,30]
[381372005,1756158647949,-153.04257722,0.00041369,30]
[381372006,1756158647959,-480.0,0.00041369,30]
[381372007,1756158647969,-427.95846731,0.00041369,30]
[381372008,1756158647978,-480.0,0.00041369,30]
[381372009,1756158647987,-480.0,0.00041369,30]
[381372010,1756158647997,-638.66,0.00041369,30]
[381372011,1756158648007,-480.0,0.00041369,30]
[381372012,1756158648016,-1325.11,0.00041369,30]
[381372013,1756158648025,-480.0,0.00041369,30]
[381372014,1756158648035,-480.0,0.00041369,30]
[381372015,1756158648045,-480.0,0.00041369,30]
[381372016,1756158648055,-480.0,0.00041369,30]
[381372017,1756158648064,-678.19,0.00041369,30]
[381372018,1756158648074,-480.0,0.00041369,30]
[381372019,1756158648083,-901.31,0.00041369,30]
[381372020,1756158648094,-274.44439348,0.00041369,30]
[381372021,1756158648104,-480.0,0.00041369,30]
[381372022,1756158648113,-887.94,0.00041369,30]
[381372023,1756158648124,-554.79,0.00041369,30]
[381372024,1756158648134,-480.0,0.00041369,30]
[381372025,1756158648143,-699.14,0.00041369,30]
[381372026,1756158648153,-1840.53,0.00041369,30]
[381372027,1756158648162,-480.0,0.00041369,30]
[381372028,1756158648172,-480.0,0.00041369,30]
[381372029,1756158648182,-480.0,0.00041369,30]
[381372030,1756158648192,-480.0,0.00041369,30]
[381372031,1756158648201,-480.0,0.00041369,30]
[381372032,1756158648211,-1249.68,0.00041369,30]
[381372033,1756158648221,-480.0,0.00041369,30]
[381372034,1756158648232,-1457.27,0.00041369,30]
[381372035,1756158648242,-480.0,0.00041369,30]
[381372036,1756158648252,-480.0,0.00041369,7]
[381372037,1756158648262,-203.98307232,0.00041369,30]
[381372038,1756158648272,-480.0,0.00041369,30]
[381372039,1756158648281,-954.81,0.00041369,30]
[381372040,1756158648291,-480.0,0.00041369,30]
[381372041,1756158648301,-480.0,0.00041369,30]
[381372042,1756158648310,-480.0,0.00041369,30]
[381372043,1756158648321,-480.0,0.00041369,30]
[381372044,1756158648332,-480.0,0.00041369,30]
[381372045,1756158648342,-480.0,0.00041369,30]
[381372046,1756158648352,-480.0,0.00041369,30]
[381372047,1756158648362,-1444.77,0.00041369,30]
[381372048,1756158648379,-678.01,0.00041369,30]
[381372049,1756158648389,-151.0,0.00041369,120]
[381372050,1756158648399,-480.0,0.00041369,30]
[381372051,1756158648409,-480.0,0.00041369,30]
[381372052,1756158648420,-151.0,0.00041369,120]
[381372053,1756158648430,-151.0,0.00041369,120]
[381372054,1756158648439,-480.0,0.00041369,30]
[381372055,1756158648450,-526.3,0.00041369,30]
[381372056,1756158648461,-612.48,0.00041369,30]
[381372057,1756158648471,-480.0,0.00041369,30]
[381372058,1756158648480,-480.0,0.00041369,30]
[381372059,1756158648490,-445.29936782,0.00041369,30]
[381372060,1756158648499,-480.0,0.00041369,30]
[381372061,1756158648509,-480.0,0.00041369,30]
[381372062,1756158648518,-480.0,0.00041369,30]
[381372063,1756158648528,-480.0,0.00041369,30]
[381372064,1756158648537,-480.0,0.00041369,30]
[381372065,1756158648546,-480.0,0.00041369,30]
[381372066,1756158648556,-151.0,0.00041369,14]
[381372067,1756158648565,-480.0,0.00041369,30]
[381372068,1756158648574,-480.0,0.00041369,30]
[381372069,1756158648584,-480.0,0.00041369,30]
[381372070,1756158648595,-480.0,0.00041369,30]
[381372071,1756158648604,-600.84,0.00041369,30]
[381372072,1756158648613,-480.0,0.00041369,30]
[381372073,1756158648623,-480.0,0.00041369,30]
[381372074,1756158648633,-480.0,0.00041369,30]
[381372075,1756158648642,-602.5,0.00041369,30]
[381372076,1756158648652,-480.0,0.00041369,30]
[381372077,1756158648661,-480.0,0.00041369,30]
[381372078,1756158648671,-480.0,0.00041369,30]
[381372079,1756158648680,-480.0,0.00041369,30]
[381372080,1756158648689,-480.0,0.00041369,30]
[381372081,1756158648699,-1260.72,0.00041369,30]
[381372082,1756158648708,-480.0,0.00041369,30]
[381372083,1756158648718,-672.66,0.00041369,30]
[381372084,1756158648727,-151.0,0.00041369,120]
[381372085,1756158648737,-880.46,0.00041369,30]
[381372086,1756158648747,-1312.4,0.00041369,30]
[381372087,1756158648756,-480.0,0.00041369,30]
[381372088,1756158648765,-480.0,0.00041369,30]
[381372089,1756158648775,-401.29242061,0.00041369,30]
[381372090,1756158648784,-480.0,0.00041369,30]
[381372091,1756158648845,-556.44430591,0.00041369,30]
[381372092,1756158648855,-480.0,0.00041369,30]
[381372093,1756158648864,-569.47723684,0.00041369,30]
[381372094,1756158648875,-480.0,0.00041369,30]
[381372095,1756158648886,-480.0,0.00041369,30]
[381372096,1756158648895,-151.0,0.00041369,120]
[381372097,1756158648906,-480.0,0.00041369,30]
[381372098,1756158648916,-730.97,0.00041369,30]
[381372099,1756158648925,-607.65,0.00041369,30]
[381372100,1756158648935,-2676.56,0.00041369,30]
[381372101,1756158648944,-1091.35,0.00041369,30]
[381372102,1756158648954,-608.28,0.00041369,30]
[381372103,1756158648964,-328.90077406,0.00041369,30]
[381372104,1756158649571,-500.0,0.00039347,32]
[381372105,1756158649581,-500.0,0.00039621,33]
[381372106,1756158649590,-480.0,0.00041095,30]
[381372107,1756158649599,-151.09922594,0.00041369,30]
[381372108,1756158649609,-955.3,0.00041369,30]
[381372109,1756158649619,-1907.25,0.00041369,30]
[381372110,1756158649628,-242.82401692,0.00041369,30]
[381372111,1756158649637,-480.0,0.00041369,30]
[381372112,1756158649647,-480.0,0.00041369,30]
[381372113,1756158649657,-1000.0,0.00041369,30]
[381372114,1756158649667,-480.0,0.00041369,30]
[381372115,1756158649676,-480.0,0.00041369,30]
[381372116,1756158649686,-480.0,0.00041369,30]
[381372117,1756158649696,-480.0,0.00041369,30]
[381372118,1756158649705,-494.55,0.00041369,30]
[381372119,1756158649715,-480.0,0.00041369,30]
[381372120,1756158649724,-480.0,0.00041369,30]
[381372121,1756158649733,-1231.94378542,0.00041369,30]
[381372122,1756158650161,-199.0,0.00040872,30]
[381372123,1756158650170,-348.54,0.00041085,10]
[381372124,1756158650180,-358.22621458,0.00041369,30]
[381372125,1756158650190,-480.0,0.00041369,30]
[381372126,1756158650199,-480.0,0.00041369,30]
[381372127,1756158650208,-480.0,0.00041369,30]
[381372128,1756158650218,-480.0,0.00041369,30]
[381372129,1756158650227,-808.2,0.00041369,30]
[381372130,1756158650236,-151.0,0.00041369,120]
[381372131,1756158650245,-1587.35,0.00041369,30]
[381372132,1756158650255,-1453.6,0.00041369,30]
[381372133,1756158650264,-618.55,0.00041369,30]
[381372134,1756158650274,-60.67931254,0.00041369,30]
[381372135,1756158650286,-419.32068746,0.00041369,30]
[381372136,1756158650296,-480.0,0.00041369,30]
[381372137,1756158650305,-1001.48,0.00041369,30]
[381372138,1756158650314,-480.0,0.00041369,30]
[381372139,1756158650324,-1280.92,0.00041369,30]
[381372140,1756158650333,-480.0,0.00041369,30]
[381372141,1756158650342,-401.09414238,0.00041369,30]
[381372142,1756158650351,-727.47,0.00041369,30]
[381372143,1756158650361,-480.0,0.00041369,30]
[381372144,1756158650371,-683.29,0.00041369,30]
[381372145,1756158650382,-480.0,0.00041369,30]
[381372146,1756158650391,-480.0,0.00041369,30]
[381372147,1756158650402,-480.0,0.00041369,30]
[381372148,1756158650411,-543.15,0.00041369,30]
[381372149,1756158650421,-480.0,0.00041369,30]
[381372150,1756158650430,-1783.85,0.00041369,30]
[381372151,1756158650440,-480.0,0.00041369,30]
[381372152,1756158650451,-489.31,0.00041369,30]
[381372153,1756158650460,-480.0,0.00041369,30]
[381372154,1756158650470,-480.0,0.00041369,30]
[381372155,1756158650479,-595.64,0.00041369,30]
[381372156,1756158650488,-480.0,0.00041369,30]
[381372157,1756158650497,-681.68,0.00041369,30]
[381372158,1756158650506,-480.0,0.00041369,30]
[381372159,1756158650516,-480.0,0.00041369,30]
[381372160,1756158650525,-2188.0,0.00041369,30]
[381372161,1756158650535,-480.0,0.00041369,30]
[381372162,1756158650544,-738.58,0.00041369,30]
[381372163,1756158650553,-151.0,0.00041369,15]
[381372164,1756158650563,-1137.5,0.00041369,30]
[381372165,1756158650572,-480.0,0.00041369,30]
[381372166,1756158650581,-167.083912,0.00041369,15]
[381372167,1756158650590,-480.0,0.00041369,30]
[381372168,1756158650599,-784.92,0.00041369,30]
[381372169,1756158650608,-796.79,0.00041369,30]
[381372170,1756158650618,-480.0,0.00041369,30]
[381372171,1756158650628,-480.0,0.00041369,30]
[381372172,1756158650637,-480.0,0.00041369,30]
[381372173,1756158650646,-151.0,0.00041369,120]
[381372174,1756158650657,-480.0,0.00041369,30]
[381372175,1756158650666,-537.36,0.00041369,30]
[381372176,1756158650676,-480.0,0.00041369,30]
[381372177,1756158650687,-480.0,0.00041369,30]
[381372178,1756158650697,-613.11,0.00041369,30]
[381372179,1756158650706,-480.0,0.00041369,30]
[381372180,1756158650716,-480.0,0.00041369,30]
[381372181,1756158650726,-1694.82,0.00041369,30]
[381372182,1756158650735,-482.87,0.00041369,30]
[381372183,1756158650745,-480.0,0.00041369,30]
[381372184,1756158650754,-480.0,0.00041369,30]
[381372185,1756158650764,-151.0,0.00041369,120]
[381372186,1756158650773,-151.0,0.00041369,120]
[381372187,1756158650783,-808.46,0.00041369,30]
[381372188,1756158650793,-151.0,0.00041369,120]
[381372189,1756158650802,-151.0,0.00041369,120]
[381372190,1756158650812,-535.69,0.00041369,30]
[381372191,1756158650822,-509.2063105,0.00041369,30]
[381372192,1756158650831,-151.0,0.00041369,120]
[381372193,1756158650840,-480.0,0.00041369,30]
[381372194,1756158650850,-480.0,0.00041369,30]
[381372195,1756158650860,-480.0,0.00041369,30]
[381372196,1756158650870,-480.0,0.00041369,30]
[381372197,1756158650880,-555.21,0.00041369,30]
[381372198,1756158650890,-2267.31,0.00041369,30]
[381372199,1756158650899,-480.0,0.00041369,30]
[381372200,1756158650909,-496.65,0.00041369,30]
[381372201,1756158650920,-480.0,0.00041369,30]
[381372202,1756158650930,-480.0,0.00041369,30]
[381372203,1756158650940,-480.0,0.00041369,30]
[381372204,1756158650950,-480.0,0.00041369,30]
[381372205,1756158650960,-480.0,0.00041369,30]
[381372206,1756158650970,-480.0,0.00041369,30]
[381372207,1756158650980,-480.0,0.00041369,30]
[381372208,1756158650990,-480.0,0.00041369,30]
[381372209,1756158650999,-1912.93,0.00041369,30]
[381372210,1756158651014,-480.0,0.00041369,30]
[381372211,1756158651025,-2389.76,0.00041369,30]
[381372212,1756158651035,-910.56,0.00041369,30]
[381372213,1756158651045,-480.0,0.00041369,30]
[381372214,1756158651055,-274.15539163,0.00041369,30]
[381372215,1756158651065,-325.22476531,0.00041369,30]
[381372216,1756158651075,-480.0,0.00041369,30]
[381372217,1756158651085,-480.0,0.00041369,30]
[381372218,1756158651095,-480.0,0.00041369,30]
[381372219,1756158651105,-660.86,0.00041369,30]
[381372220,1756158651115,-480.0,0.00041369,30]
[381372221,1756158651126,-480.0,0.00041369,30]
[381372222,1756158651136,-151.0,0.00041369,120]
[381372223,1756158651146,-480.0,0.00041369,30]
[381372224,1756158651156,-494.64,0.00041369,30]
[381372225,1756158651166,-737.29,0.00041369,30]
[381372226,1756158651176,-592.66,0.00041369,7]
[381372227,1756158651186,-1425.89,0.00041369,30]
[381372228,1756158651196,-480.0,0.00041369,30]
[381372229,1756158651206,-480.0,0.00041369,30]
[381372230,1756158651216,-480.0,0.00041369,30]
[381372231,1756158651227,-480.0,0.00041369,30]
[381372232,1756158651236,-807.88,0.00041369,30]
[381372233,1756158651246,-624.61,0.00041369,30]
[381372234,1756158651256,-151.716649,0.00041369,2]
[381372235,1756158651266,-761.18,0.00041369,30]
[381372236,1756158651276,-151.0,0.00041369,120]
[381372237,1756158651287,-635.88,0.00041369,30]
[381372238,1756158651296,-988.52,0.00041369,30]
[381372239,1756158651306,-1000.87,0.00041369,30]
[381372240,1756158651316,-480.0,0.00041369,30]
[381372241,1756158651326,-480.0,0.00041369,30]
[381372242,1756158651337,-885.03,0.00041369,30]
[381372243,1756158651346,-151.0,0.00041369,120]
[381372244,1756158651357,-643.28,0.00041369,30]
[381372245,1756158651369,-480.0,0.00041369,30]
[381372246,1756158651380,-911.18,0.00041369,30]
[381372247,1756158651390,-480.0,0.00041369,30]
[381372248,1756158651400,-1053.52,0.00041369,30]
[381372249,1756158651411,-873.58,0.00041369,30]
[381372250,1756158651420,-480.0,0.00041369,30]
[381372251,1756158651430,-480.0,0.00041369,30]
[381372252,1756158651441,-2753.7,0.00041369,30]
[381372253,1756158651454,-480.0,0.00041369,30]
[381372254,1756158651465,-953.48,0.00041369,30]
[381372255,1756158651475,-535.32,0.00041369,30]
[381372256,1756158651486,-480.0,0.00041369,30]
[381372257,1756158651496,-734.34,0.00041369,30]
[381372258,1756158651507,-1739.58,0.00041369,30]
[381372259,1756158651517,-768.68,0.00041369,30]
[381372260,1756158651527,-642.77,0.00041369,30]
[381372261,1756158651538,-480.0,0.00041369,30]
[381372262,1756158651548,-480.0,0.00041369,30]
[381372263,1756158651558,-480.0,0.00041369,30]
[381372264,1756158651567,-480.0,0.00041369,30]
[381372265,1756158651577,-480.0,0.00041369,30]
[381372266,1756158651587,-480.0,0.00041369,30]
[381372267,1756158651596,-507.77,0.00041369,30]
[381372268,1756158651606,-480.0,0.00041369,30]
[381372269,1756158651616,-480.0,0.00041369,30]
[381372270,1756158651626,-1257.56,0.00041369,30]
[381372271,1756158651635,-480.0,0.00041369,30]
[381372272,1756158651645,-1358.74,0.00041369,30]
[381372273,1756158651655,-1316.89,0.00041369,30]
[381372274,1756158651665,-480.0,0.00041369,30]
[381372275,1756158651675,-598.98,0.00041369,30]
[381372276,1756158651686,-480.0,0.00041369,30]
[381372277,1756158651696,-839.1,0.00041369,30]
[381372278,1756158651706,-151.0,0.00041369,120]
[381372279,1756158651716,-1066.82,0.00041369,30]
[381372280,1756158651726,-151.0,0.00041369,120]
[381372281,1756158651736,-480.0,0.00041369,30]
[381372282,1756158651746,-934.39,0.00041369,30]
[381372283,1756158651759,-480.0,0.00041369,30]
[381372284,1756158651769,-480.0,0.00041369,30]
[381372285,1756158651780,-151.0,0.00041369,30]
[381372286,1756158651791,-480.0,0.00041369,30]
[381372287,1756158651802,-480.0,0.00041369,30]
[381372288,1756158651812,-493.02,0.00041369,30]
[381372289,1756158651821,-1820.75,0.00041369,30]
[381372290,1756158651831,-480.0,0.00041369,30]
[381372291,1756158651841,-151.0,0.00041369,120]
[381372292,1756158651851,-801.6,0.00041369,30]
[381372293,1756158651861,-964.07,0.00041369,30]
[381372294,1756158651871,-612.74,0.00041369,30]
[381372295,1756158651882,-863.93,0.00041369,30]
[381372296,1756158651891,-990.06,0.00041369,30]
[381372297,1756158651904,-480.0,0.00041369,30]
[381372298,1756158651915,-480.0,0.00041369,30]
[381372299,1756158651925,-480.0,0.00041369,30]
[381372300,1756158651936,-151.0,0.00041369,120]
[381372301,1756158651947,-602.92,0.00041369,30]
[381372302,1756158651960,-839.7,0.00041369,30]
[381372303,1756158651971,-710.65,0.00041369,30]
[381372304,1756158651981,-3217.14,0.00041369,30]
[381372305,1756158651994,-2816.31,0.00041369,30]
[381372306,1756158652004,-925.71,0.00041369,30]
[381372307,1756158652014,-480.0,0.00041369,30]
[381372308,1756158652024,-480.0,0.00041369,30]
[381372309,1756158652034,-321.19551682,0.00041369,30]
[381372310,1756158652044,-480.0,0.00041369,30]
[381372311,1756158652054,-480.0,0.00041369,30]
[381372312,1756158652064,-151.0,0.00041369,120]
[381372313,1756158652074,-733.06,0.00041369,30]
[381372314,1756158652084,-480.0,0.00041369,30]
[381372315,1756158652095,-480.0,0.00041369,30]
[381372316,1756158652105,-665.49,0.00041369,30]
[381372317,1756158652116,-1131.66,0.00041369,30]
[381372318,1756158652127,-151.0,0.00041369,120]
[381372319,1756158652137,-151.0,0.00041369,120]
[381372320,1756158652147,-480.0,0.00041369,30]
[381372321,1756158652157,-151.0,0.00041369,120]
[381372322,1756158652168,-480.0,0.00041369,30]
[381372323,1756158652178,-480.0,0.00041369,30]
[381372324,1756158652189,-480.0,0.00041369,30]
[381372325,1756158652199,-869.27,0.00041369,30]
[381372326,1756158652209,-535.11,0.00041369,30]
[381372327,1756158652219,-480.0,0.00041369,30]
[381372328,1756158652229,-1228.93,0.00041369,30]
[381372329,1756158652239,-480.0,0.00041369,30]
[381372330,1756158652249,-480.0,0.00041369,30]
[381372331,1756158652259,-667.35,0.00041369,30]
[381372332,1756158652269,-1750.97,0.00041369,30]
[381372333,1756158652279,-561.56,0.00041369,30]
[381372334,1756158652289,-3152.93,0.00041369,30]
[381372335,1756158652299,-619.48,0.00041369,30]
[381372336,1756158652309,-533.39,0.00041369,30]
[381372337,1756158652319,-1323.97,0.00041369,30]
[381372338,1756158652329,-1756.16,0.00041369,30]
[381372339,1756158652339,-480.0,0.00041369,30]
[381372340,1756158652349,-1452.88,0.00041369,30]
[381372341,1756158652360,-480.0,0.00041369,30]
[381372342,1756158652370,-151.0,0.00041369,120]
[381372343,1756158652385,-480.0,0.00041369,30]
[381372344,1756158652395,-1092.09,0.00041369,30]
[381372345,1756158652406,-480.0,0.00041369,30]
[381372346,1756158652416,-480.0,0.00041369,30]
[381372347,1756158652427,-480.0,0.00041369,30]
[381372348,1756158652436,-1899.24,0.00041369,30]
[381372349,1756158652446,-480.0,0.00041369,30]
[381372350,1756158652458,-157.728967,0.00041369,120]
[381372351,1756158652468,-480.0,0.00041369,30]
[381372352,1756158652478,-157.728967,0.00041369,120]
[381372353,1756158652488,-605.89,0.00041369,20]
[381372354,1756158652499,-1017.23,0.00041369,30]
[381372355,1756158652509,-157.728967,0.00041369,120]
[381372356,1756158652519,-2291.56,0.00041369,30]
[381372357,1756158652530,-157.728967,0.00041369,120]
[381372358,1756158652540,-956.61,0.00041369,30]
[381372359,1756158652550,-480.0,0.00041369,30]
[381372360,1756158652560,-2021.64,0.00041369,30]
[381372361,1756158652570,-480.0,0.00041369,30]
[381372362,1756158652580,-480.0,0.00041369,30]
[381372363,1756158652590,-694.97,0.00041369,30]
[381372364,1756158652600,-3117.89,0.00041369,30]
[381372365,1756158652610,-483.63,0.00041369,30]
[381372366,1756158652620,-480.0,0.00041369,30]
[381372367,1756158652631,-480.0,0.00041369,30]
[381372368,1756158652640,-480.0,0.00041369,30]
[381372369,1756158652650,-3573.69,0.00041369,30]
[381372370,1756158652660,-1015.96,0.00041369,30]
[381372371,1756158652670,-413.17201356,0.00041369,30]
[381372372,1756158652680,-1223.93,0.00041369,30]
[381372373,1756158652689,-775.06,0.00041369,30]
[381372374,1756158652699,-480.0,0.00041369,30]
[381372375,1756158652709,-151.0,0.00041369,120]
[381372376,1756158652719,-480.0,0.00041369,30]
[381372377,1756158652728,-480.0,0.00041369,30]
[381372378,1756158652738,-480.0,0.00041369,30]
[381372379,1756158652747,-213.760316,0.00041369,120]
[381372380,1756158652757,-1584.41,0.00041369,30]
[381372381,1756158652767,-2682.1,0.00041369,30]
[381372382,1756158652777,-480.0,0.00041369,30]
[381372383,1756158652786,-824.11,0.00041369,30]
[381372384,1756158652796,-748.53,0.00041369,30]
[381372385,1756158652806,-1690.35,0.00041369,30]
[381372386,1756158652816,-480.0,0.00041369,30]
[381372387,1756158652826,-480.0,0.00041369,30]
[381372388,1756158652835,-1961.21,0.00041369,30]
[381372389,1756158652845,-667.47,0.00041369,30]
[381372390,1756158652855,-151.0,0.00041369,120]
[381372391,1756158652865,-2225.43,0.00041369,30]
[381372392,1756158652874,-516.97,0.00041369,30]
[381372393,1756158652885,-736.18,0.00041369,30]
[381372394,1756158652895,-480.0,0.00041369,5]
[381372395,1756158652904,-1210.93,0.00041369,30]
[381372396,1756158653127,-480.0,0.00041369,30]
[381372397,1756158653148,-535.03,0.00041369,30]
[381372398,1756158653159,-520.91,0.00041369,30]
[381372399,1756158653168,-612.79,0.00041369,30]
[381372400,1756158653178,-480.0,0.00041369,30]
[381372401,1756158653187,-480.0,0.00041369,30]
[381372402,1756158653198,-480.0,0.00041369,30]
[381372403,1756158653207,-151.845301,0.00041369,120]
[381372404,1756158653217,-480.0,0.00041369,30]
[381372405,1756158653227,-480.0,0.00041369,30]
[381372406,1756158653237,-480.0,0.00041369,30]
[381372407,1756158653246,-151.809288,0.00041369,120]
[381372408,1756158653255,-1062.08,0.00041369,30]
[381372409,1756158653265,-618.8,0.00041369,30]
[381372410,1756158653274,-480.0,0.00041369,30]
[381372411,1756158653283,-480.0,0.00041369,30]
[381372412,1756158653292,-480.0,0.00041369,30]
[381372413,1756158653302,-860.72,0.00041369,30]
[381372414,1756158653311,-480.0,0.00041369,30]
[381372415,1756158653320,-480.0,0.00041369,30]
[381372416,1756158653330,-480.0,0.00041369,30]
[381372417,1756158653339,-480.0,0.00041369,30]
[381372418,1756158653349,-151.0,0.00041369,120]
[381372419,1756158653358,-480.0,0.00041369,30]
[381372420,1756158653370,-151.0,0.00041369,120]
[381372421,1756158653382,-1121.42,0.00041369,30]
[381372422,1756158653391,-480.0,0.00041369,30]
[381372423,1756158653401,-571.82,0.00041369,30]
[381372424,1756158653411,-808.49,0.00041369,30]
[381372425,1756158653421,-2852.37,0.00041369,30]
[381372426,1756158653430,-151.0,0.00041369,120]
[381372427,1756158653439,-246.0,0.00041369,30]
[381372428,1756158653449,-480.0,0.00041369,30]
[381372429,1756158653459,-959.8,0.00041369,30]